fUSD/lending_fUSD_20240919
["ID","MTS","AMOUNT","RATE_DAILY","PERIOD"]
[338530674,1726721445381,-500.0,0.00013273,2]
[338530675,1726721445391,-847.94,0.00013273,2]
[338530676,1726721445400,-500.0,0.00013273,2]
[338530677,1726721445411,-500.0,0.00013273,2]
[338530678,1726721445420,-500.0,0.00013273,2]
[338530679,1726721445430,-1247.13,0.00013273,2]
[338530680,1726721445439,-966.21,0.00013273,2]
[338530681,1726721445449,-500.0,0.00013273,2]
[338530682,1726721445459,-500.0,0.00013273,2]
[338530683,1726721445469,-1171.32,0.00013273,2]
[338530684,1726721445478,-500.0,0.00013273,2]
[338530685,1726721445487,-500.0,0.00013273,2]
[338530686,1726721445497,-500.0,0.00013273,2]
[338530687,1726721445507,-1014.34,0.00013273,2]
[338530688,1726721445516,-500.0,0.00013273,2]
[338530689,1726721445525,-500.0,0.00013273,2]
[338530690,1726721445535,-708.48,0.00013273,2]
[338530691,1726721445544,-500.0,0.00013273,2]
[338530692,1726721445554,-500.0,0.00013273,2]
[338530693,1726721445563,-1077.73,0.00013273,2]
[338530694,1726721445573,-500.0,0.00013273,2]
[338530695,1726721445582,-500.0,0.00013273,2]
[338530696,1726721445592,-923.6,0.00013273,2]
[338530697,1726721445602,-500.0,0.00013273,2]
[338530698,1726721445611,-500.0,0.00013273,2]
[338530699,1726721445621,-500.0,0.00013273,2]
[338530700,1726721445630,-500.0,0.00013273,2]
[338530701,1726721445640,-588.88,0.00013273,2]
[338530702,1726721445649,-1256.87,0.00013273,2]
[338530703,1726721445659,-620.25,0.00013273,2]
[338530704,1726721445668,-500.0,0.00013273,2]
[338530705,1726721445680,-1477.36,0.00013273,2]
[338530706,1726721445689,-500.0,0.00013273,2]
[338530707,1726721445698,-154.420773,0.00013273,2]
[338530708,1726721445709,-1451.44,0.00013273,2]
[338530709,1726721445718,-500.0,0.00013273,2]
[338530710,1726721445728,-500.0,0.00013273,2]
[338530711,1726721445738,-1352.1,0.00013273,2]
[338530712,1726721445749,-792.65,0.00013273,2]
[338530713,1726721445760,-2085.39,0.00013273,2]
[338530714,1726721445770,-1403.01,0.00013273,2]
[338530715,1726721445781,-500.0,0.00013273,2]
[338530716,1726721445792,-500.0,0.00013273,2]
[338530717,1726721445802,-296.23679422,0.00013273,2]
[338530718,1726721445816,-1578.28,0.00013273,2]
[338530719,1726721445826,-500.0,0.00013273,2]
[338530720,1726721445840,-707.51,0.00013273,2]
[338530721,1726721445849,-1491.79,0.00013273,2]
[338530722,1726721445859,-500.0,0.00013273,2]
[338530723,1726721445868,-500.0,0.00013273,2]
[338530724,1726721445878,-500.0,0.00013273,2]
[338530725,1726721445888,-850.21,0.00013273,2]
[338530726,1726721445899,-500.0,0.00013273,2]
[338530727,1726721445912,-500.0,0.00013273,2]
[338530728,1726721445922,-500.0,0.00013273,2]
[338530729,1726721445933,-500.0,0.00013273,2]
[338530730,1726721445943,-654.46,0.00013273,2]
[338530731,1726721445952,-500.0,0.00013273,2]
[338530732,1726721445962,-583.16,0.00013273,2]
[338530733,1726721445972,-500.0,0.00013273,2]
[338530734,1726721445981,-500.0,0.00013273,2]
[338530735,1726721445991,-723.35,0.00013273,2]
[338530736,1726721446000,-500.0,0.00013273,2]
[338530737,1726721446010,-398.937309,0.00013273,2]
[338530738,1726721446021,-398.937309,0.00013273,2]
[338530739,1726721446031,-398.937309,0.00013273,2]
[338530740,1726721446041,-398.937309,0.00013273,2]
[338530741,1726721446050,-398.937309,0.00013273,2]
[338530742,1726721446060,-398.937309,0.00013273,2]
[338530743,1726721446071,-500.0,0.00013273,2]
[338530744,1726721446080,-398.937309,0.00013273,2]
[338530745,1726721446090,-398.937309,0.00013273,2]
[338530746,1726721446100,-1344.97,0.00013273,2]
[338530747,1726721446109,-657.41,0.00013273,2]
[338530748,1726721446119,-500.0,0.00013273,2]
[338530749,1726721446130,-500.0,0.00013273,2]
[338530751,1726721446140,-500.0,0.00013273,2]
[338530752,1726721446149,-500.0,0.00013273,2]
[338530753,1726721446159,-500.0,0.00013273,2]
[338530754,1726721446168,-500.0,0.00013273,2]
[338530755,1726721446178,-500.0,0.00013273,2]
[338530756,1726721446188,-981.87,0.00013273,2]
[338530757,1726721446198,-500.0,0.00013273,2]
[338530758,1726721446208,-601.13,0.00013273,2]
[338530759,1726721446224,-500.0,0.00013273,2]
[338530760,1726721446234,-1313.14,0.00013273,2]
[338530761,1726721446244,-791.53,0.00013273,2]
[338530762,1726721446253,-151.0,0.00013273,2]
[338530763,1726721446262,-224.3125,0.00013273,2]
[338530764,1726721446271,-151.0,0.00013273,2]
[338530765,1726721446281,-151.0,0.00013273,2]
[338530766,1726721446290,-151.0,0.00013273,2]
[338530767,1726721446299,-151.0,0.00013273,2]
[338530768,1726721446308,-500.0,0.00013273,2]
[338530769,1726721446317,-500.0,0.00013273,2]
[338530770,1726721446327,-500.0,0.00013273,2]
[338530771,1726721446336,-500.0,0.00013273,2]
[338530772,1726721446346,-1032.67,0.00013273,2]
[338530773,1726721446356,-1692.84,0.00013273,2]
[338530774,1726721446366,-500.0,0.00013273,2]
[338530775,1726721446377,-500.0,0.00013273,2]
[338530776,1726721446389,-3156.33,0.00013273,2]
[338530777,1726721446400,-151.0,0.00013273,2]
[338530778,1726721446410,-151.0,0.00013273,2]
[338530779,1726721446421,-151.0,0.00013273,2]
[338530780,1726721446430,-151.0,0.00013273,2]
[338530781,1726721446441,-773.4,0.00013273,2]
[338530782,1726721446451,-636.75,0.00013273,2]
[338530783,1726721446466,-500.0,0.00013273,2]
[338530784,1726721446475,-355.115025,0.00013273,2]
[338530785,1726721446484,-355.115025,0.00013273,2]
[338530786,1726721446494,-355.115025,0.00013273,2]
[338530787,1726721446503,-355.115025,0.00013273,2]
[338530788,1726721446512,-500.0,0.00013273,2]
[338530789,1726721446522,-355.115025,0.00013273,2]
[338530790,1726721446531,-355.115025,0.00013273,2]
[338530791,1726721446541,-355.115025,0.00013273,2]
[338530792,1726721446550,-355.115026,0.00013273,2]
[338530793,1726721446560,-1111.86,0.00013273,2]
[338530794,1726721446570,-1757.75,0.00013273,2]
[338530795,1726721446579,-500.0,0.00013273,2]
[338530796,1726721446589,-1369.89,0.00013273,2]
[338530797,1726721446600,-535.86,0.00013273,2]
[338530798,1726721446610,-500.0,0.00013273,2]
[338530799,1726721446619,-500.0,0.00013273,2]
[338530800,1726721446628,-630.25,0.00013273,2]
[338530801,1726721446638,-500.0,0.00013273,2]
[338530802,1726721446647,-633.69,0.00013273,2]
[338530803,1726721446657,-1346.96,0.00013273,2]
[338530804,1726721446666,-500.0,0.00013273,2]
[338530805,1726721446675,-500.0,0.00013273,2]
[338530806,1726721446685,-1154.06,0.00013273,2]
[338530807,1726721446694,-500.0,0.00013273,2]
[338530808,1726721446703,-996.69,0.00013273,2]
[338530809,1726721446716,-500.0,0.00013273,2]
[338530810,1726721446726,-500.0,0.00013273,2]
[338530811,1726721446736,-500.0,0.00013273,2]
[338530812,1726721446746,-500.0,0.00013273,2]
[338530813,1726721446755,-500.0,0.00013273,2]
[338530814,1726721446764,-1532.28,0.00013273,2]
[338530815,1726721446773,-861.43,0.00013273,2]
[338530816,1726721446783,-929.8,0.00013273,2]
[338530817,1726721446792,-1992.79,0.00013273,2]
[338530818,1726721446802,-1463.32,0.00013273,2]
[338530819,1726721446811,-1543.93,0.00013273,2]
[338530820,1726721446821,-500.0,0.00013273,2]
[338530821,1726721446831,-500.0,0.00013273,2]
[338530822,1726721446842,-708.794204,0.00013273,2]
[338530823,1726721446852,-708.794204,0.00013273,2]
[338530824,1726721446861,-708.794204,0.00013273,2]
[338530825,1726721446870,-2846.54,0.00013273,2]
[338530826,1726721446881,-500.0,0.00013273,2]
[338530827,1726721446891,-708.794204,0.00013273,2]
[338530828,1726721446900,-708.794204,0.00013273,2]
[338530829,1726721446912,-708.794203,0.00013273,2]
[338530830,1726721446921,-500.0,0.00013273,2]
[338530831,1726721446931,-500.0,0.00013273,2]
[338530832,1726721446940,-3862.97,0.00013273,2]
[338530833,1726721446950,-3753.39,0.00013273,2]
[338530834,1726721446962,-1086.72,0.00013273,2]
[338530835,1726721446971,-1858.44,0.00013273,2]
[338530836,1726721446981,-500.0,0.00013273,2]
[338530837,1726721446991,-2907.25,0.00013273,2]
[338530838,1726721447000,-3373.08,0.00013273,2]
[338530839,1726721447010,-500.0,0.00013273,2]
[338530840,1726721447020,-500.0,0.00013273,2]
[338530841,1726721447029,-937.4,0.00013273,2]
[338530842,1726721447039,-1812.66,0.00013273,2]
[338530843,1726721447048,-1437.14,0.00013273,2]
[338530844,1726721447058,-2339.37,0.00013273,2]
[338530845,1726721447068,-500.0,0.00013273,2]
[338530846,1726721447077,-1826.31,0.00013273,2]
[338530847,1726721447087,-500.0,0.00013273,2]
[338530848,1726721447096,-1580.63,0.00013273,2]
[338530849,1726721447105,-1833.27,0.00013273,2]
[338530850,1726721447115,-500.0,0.00013273,2]
[338530851,1726721447124,-500.0,0.00013273,2]
[338530852,1726721447135,-500.0,0.00013273,2]
[338530853,1726721447144,-1564.65,0.00013273,2]
[338530854,1726721447154,-500.0,0.00013273,2]
[338530855,1726721447163,-616.44,0.00013273,2]
[338530856,1726721447173,-151.0,0.00013273,2]
[338530857,1726721447183,-500.0,0.00013273,2]
[338530858,1726721447192,-208.8104,0.00013273,2]
[338530859,1726721447202,-208.8104,0.00013273,2]
[338530860,1726721447213,-559.41,0.00013273,2]
[338530861,1726721447222,-500.0,0.00013273,2]
[338530862,1726721447232,-208.8104,0.00013273,2]
[338530863,1726721447241,-2673.38,0.00013273,2]
[338530864,1726721447251,-208.810404,0.00013273,2]
[338530865,1726721447261,-500.0,0.00013273,2]
[338530866,1726721447270,-1762.66,0.00013273,2]
[338530867,1726721447279,-1599.88,0.00013273,2]
[338530868,1726721447288,-500.0,0.00013273,2]
[338530869,1726721447298,-500.0,0.00013273,2]
[338530870,1726721447308,-500.0,0.00013273,2]
[338530871,1726721447318,-519.0,0.00013273,2]
[338530872,1726721447328,-500.0,0.00013273,2]
[338530873,1726721447337,-571.39,0.00013273,2]
[338530874,1726721447347,-2220.04,0.00013273,2]
[338530875,1726721447357,-500.0,0.00013273,2]
[338530876,1726721447367,-703.06,0.00013273,2]
[338530877,1726721447376,-1665.65,0.00013273,2]
[338530878,1726721447385,-1120.78,0.00013273,2]
[338530879,1726721447394,-1166.36,0.00013273,2]
[338530880,1726721447404,-2180.37,0.00013273,2]
[338530881,1726721447413,-500.0,0.00013273,2]
[338530882,1726721447423,-2089.01,0.00013273,2]
[338530883,1726721447432,-500.0,0.00013273,2]
[338530884,1726721447441,-500.0,0.00013273,2]
[338530885,1726721447451,-1364.88,0.00013273,2]
[338530886,1726721447461,-623.38,0.00013273,2]
[338530887,1726721447470,-3011.4,0.00013273,2]
[338530888,1726721447479,-521.69,0.00013273,2]
[338530889,1726721447488,-500.0,0.00013273,2]
[338530890,1726721447497,-500.0,0.00013273,2]
[338530891,1726721447507,-500.0,0.00013273,2]
[338530892,1726721447516,-1429.86,0.00013273,2]
[338530893,1726721447526,-3343.07,0.00013273,2]
[338530894,1726721447535,-500.0,0.00013273,2]
[338530895,1726721447544,-339.4778643,0.00013273,2]
[338530896,1726721447553,-586.68936028,0.00013273,2]
[338530897,1726721447563,-892.59,0.00013273,2]
[338530898,1726721447572,-1571.57,0.00013273,2]
[338530899,1726721447581,-1001.27,0.00013273,2]
[338530900,1726721447590,-996.35,0.00013273,2]
[338530901,1726721447685,-1453.38,0.00013273,2]
[338530902,1726721447694,-500.0,0.00013273,2]
[338530903,1726721447703,-929.84,0.00013273,2]
[338530904,1726721447715,-500.0,0.00013273,2]
[338530905,1726721447724,-2250.97,0.00013273,2]
[338530906,1726721447733,-511.36,0.00013273,2]
[338530907,1726721447742,-500.0,0.00013273,2]
[338530908,1726721447751,-3796.74,0.00013273,2]
[338530909,1726721447760,-500.0,0.00013273,2]
[338530910,1726721447769,-500.0,0.00013273,2]
[338530911,1726721447778,-842.51,0.00013273,2]
[338530912,1726721447788,-1114.5,0.00013273,2]
[338530913,1726721447797,-704.72,0.00013273,2]
[338530914,1726721447806,-500.0,0.00013273,2]
[338530915,1726721447816,-939.23,0.00013273,2]
[338530916,1726721447826,-747.48,0.00013273,2]
[338530917,1726721447839,-2319.89,0.00013273,2]
[338530918,1726721447848,-849.39,0.00013273,2]
[338530919,1726721447858,-1530.11,0.00013273,2]
[338530920,1726721447867,-500.0,0.00013273,2]
[338530921,1726721447877,-3358.66,0.00013273,2]
[338530922,1726721447888,-2550.56,0.00013273,2]
[338530923,1726721447898,-1268.13,0.00013273,2]
[338530924,1726721447908,-1988.95,0.00013273,2]
[338530925,1726721447917,-2973.05,0.00013273,2]
[338530926,1726721447927,-1758.32,0.00013273,2]
[338530927,1726721447936,-500.0,0.00013273,2]
[338530928,1726721447945,-1591.9,0.00013273,2]
[338530929,1726721447955,-513.53,0.00013273,2]
[338530930,1726721447965,-2784.12,0.00013273,2]
[338530931,1726721447976,-1092.38,0.00013273,2]
[338530932,1726721447985,-3145.68,0.00013273,2]
[338530933,1726721447995,-545.73,0.00013273,2]
[338530934,1726721448004,-500.0,0.00013273,2]
[338530935,1726721448013,-697.02,0.00013273,2]
[338530936,1726721448023,-571.98,0.00013273,2]
[338530937,1726721448032,-500.0,0.00013273,2]
[338530938,1726721448042,-1420.83,0.00013273,2]
[338530939,1726721448051,-966.62,0.00013273,2]
[338530940,1726721448061,-2282.0,0.00013273,2]
[338530941,1726721448070,-500.0,0.00013273,2]
[338530942,1726721448080,-1429.48,0.00013273,2]
[338530943,1726721448089,-1036.68,0.00013273,2]
[338530944,1726721448098,-500.0,0.00013273,2]
[338530945,1726721448108,-500.0,0.00013273,2]
[338530946,1726721448117,-665.03,0.00013273,2]
[338530947,1726721448127,-500.0,0.00013273,2]
[338530948,1726721448136,-3190.95,0.00013273,2]
[338530949,1726721448145,-888.56,0.00013273,2]
[338530950,1726721448155,-613.97,0.00013273,2]
[338530951,1726721448164,-500.0,0.00013273,2]
[338530952,1726721448174,-500.0,0.00013273,2]
[338530953,1726721448184,-1798.32,0.00013273,2]
[338530954,1726721448193,-500.0,0.00013273,2]
[338530955,1726721448203,-4217.42,0.00013273,2]
[338530956,1726721448214,-1039.49,0.00013273,2]
[338530957,1726721448223,-2936.3,0.00013273,2]
[338530958,1726721448233,-500.0,0.00013273,2]
[338530959,1726721448242,-997.99,0.00013273,2]
[338530960,1726721448251,-500.0,0.00013273,2]
[338530961,1726721448260,-500.0,0.00013273,2]
[338530962,1726721448270,-1100.68,0.00013273,2]
[338530963,1726721448279,-1143.42,0.00013273,2]
[338530964,1726721448289,-594.3,0.00013273,2]
[338530965,1726721448298,-858.43,0.00013273,2]
[338530966,1726721448307,-3070.41,0.00013273,2]
[338530967,1726721448317,-957.37,0.00013273,2]
[338530968,1726721448326,-500.0,0.00013273,2]
[338530969,1726721448336,-500.0,0.00013273,2]
[338530970,1726721448345,-500.0,0.00013273,2]
[338530971,1726721448354,-2478.33,0.00013273,2]
[338530972,1726721448363,-1133.03,0.00013273,2]
[338530973,1726721448374,-529.43,0.00013273,2]
[338530974,1726721448383,-500.0,0.00013273,2]
[338530975,1726721448392,-500.0,0.00013273,2]
[338530976,1726721448401,-1731.86,0.00013273,2]
[338530977,1726721448411,-600.01,0.00013273,2]
[338530978,1726721448421,-754.81,0.00013273,2]
[338530979,1726721448430,-531.92,0.00013273,2]
[338530980,1726721448439,-500.0,0.00013273,2]
[338530981,1726721448449,-500.0,0.00013273,2]
[338530982,1726721448458,-500.0,0.00013273,2]
[338530983,1726721448468,-861.22,0.00013273,2]
[338530984,1726721448477,-500.0,0.00013273,2]
[338530985,1726721448487,-647.3,0.00013273,2]
[338530986,1726721448496,-1132.4,0.00013273,2]
[338530987,1726721448505,-500.0,0.00013273,2]
[338530988,1726721448514,-500.0,0.00013273,2]
[338530989,1726721448523,-3184.39,0.00013273,2]
[338530990,1726721448533,-1351.79,0.00013273,2]
[338530991,1726721448543,-500.0,0.00013273,2]
[338530992,1726721448553,-1087.97,0.00013273,2]
[338530993,1726721448562,-500.0,0.00013273,2]
[338530994,1726721448572,-3249.66,0.00013273,2]
[338530995,1726721448581,-856.38,0.00013273,2]
[338530996,1726721448590,-678.37,0.00013273,2]
[338530997,1726721448600,-500.0,0.00013273,2]
[338530998,1726721448609,-1823.36,0.00013273,2]
[338530999,1726721448619,-500.0,0.00013273,2]
[338531000,1726721448628,-929.22,0.00013273,2]
[338531001,1726721448637,-747.18,0.00013273,2]
[338531002,1726721448647,-500.0,0.00013273,2]
[338531003,1726721448657,-2098.69,0.00013273,2]
[338531004,1726721448667,-580.79,0.00013273,2]
[338531005,1726721448676,-876.33,0.00013273,2]
[338531006,1726721448686,-675.87,0.00013273,2]
[338531007,1726721448695,-849.52,0.00013273,2]
[338531008,1726721448705,-726.23,0.00013273,2]
[338531009,1726721448714,-500.0,0.00013273,2]
[338531010,1726721448724,-3894.5,0.00013273,2]
[338531011,1726721448733,-768.99,0.00013273,2]
[338531012,1726721448743,-500.0,0.00013273,2]
[338531013,1726721448753,-514.81,0.00013273,2]
[338531014,1726721448762,-1678.77,0.00013273,2]
[338531015,1726721448771,-3588.29,0.00013273,2]
[338531016,1726721448781,-561.88,0.00013273,2]
[338531017,1726721448791,-3612.63,0.00013273,2]
[338531018,1726721448800,-500.0,0.00013273,2]
[338531019,1726721448809,-500.0,0.00013273,2]
[338531020,1726721448819,-1165.21,0.00013273,2]
[338531021,1726721448829,-1886.85,0.00013273,2]
[338531022,1726721448841,-2851.24,0.00013273,2]
[338531023,1726721448850,-5211.22,0.00013273,2]
[338531024,1726721448860,-2563.28,0.00013273,2]
[338531025,1726721448869,-500.0,0.00013273,2]
[338531026,1726721448880,-628.73,0.00013273,2]
[338531027,1726721448889,-747.64,0.00013273,2]
[338531028,1726721448898,-1122.98,0.00013273,2]
[338531029,1726721448909,-510.27,0.00013273,2]
[338531030,1726721448918,-4847.2,0.00013273,2]
[338531031,1726721448928,-857.76,0.00013273,2]
[338531032,1726721448937,-1711.51,0.00013273,2]
[338531033,1726721448947,-500.0,0.00013273,2]
[338531034,1726721448957,-1224.38,0.00013273,2]
[338531035,1726721448967,-5936.67,0.00013273,2]
[338531036,1726721448976,-500.0,0.00013273,2]
[338531037,1726721448986,-729.36,0.00013273,2]
[338531038,1726721448995,-2012.25,0.00013273,2]
[338531039,1726721449005,-1526.2,0.00013273,2]
[338531040,1726721449015,-500.0,0.00013273,2]
[338531041,1726721449024,-2702.45,0.00013273,2]
[338531042,1726721449034,-500.0,0.00013273,2]
[338531043,1726721449044,-162.31138245,0.00013273,2]
[338531044,1726721449053,-500.0,0.00013273,2]
[338531045,1726721449063,-500.0,0.00013273,2]
[338531046,1726721449072,-595.84,0.00013273,2]
[338531047,1726721449082,-2589.63,0.00013273,2]
[338531048,1726721449092,-500.0,0.00013273,2]
[338531049,1726721449101,-537.13,0.00013273,2]
[338531050,1726721449111,-500.0,0.00013273,2]
[338531051,1726721449120,-1383.21,0.00013273,2]
[338531052,1726721449129,-500.0,0.00013273,2]
[338531053,1726721449138,-500.0,0.00013273,2]
[338531054,1726721449148,-1474.98,0.00013273,2]
[338531055,1726721449158,-1873.98,0.00013273,2]
[338531056,1726721449167,-1686.47,0.00013273,2]
[338531057,1726721449177,-500.0,0.00013273,2]
[338531058,1726721449187,-500.0,0.00013273,2]
[338531059,1726721449196,-620.39,0.00013273,2]
[338531060,1726721449207,-1845.18,0.00013273,2]
[338531061,1726721449216,-791.54,0.00013273,2]
[338531062,1726721449226,-669.2,0.00013273,2]
[338531063,1726721449236,-1162.75,0.00013273,2]
[338531064,1726721449245,-500.0,0.00013273,2]
[338531065,1726721449254,-151.0,0.00013273,2]
[338531066,1726721449264,-500.0,0.00013273,2]
[338531067,1726721449273,-500.0,0.00013273,2]
[338531068,1726721449282,-500.0,0.00013273,2]
[338531069,1726721449291,-1305.31,0.00013273,2]
[338531070,1726721449301,-151.0,0.00013273,2]
[338531071,1726721449310,-1911.46,0.00013273,2]
[338531072,1726721449320,-500.0,0.00013273,2]
[338531073,1726721449329,-500.0,0.00013273,2]
[338531074,1726721449338,-151.644677,0.00013273,2]
[338531075,1726721449348,-500.0,0.00013273,2]
[338531076,1726721449358,-286.89151474,0.00013273,2]
[338531077,1726721449367,-1733.02,0.00013273,2]
[338531078,1726721449377,-227.23,0.00013273,2]
[338531079,1726721449386,-500.0,0.00013273,2]
[338531080,1726721449396,-1925.43,0.00013273,2]
[338531081,1726721449405,-500.0,0.00013273,2]
[338531082,1726721449415,-1565.1,0.00013273,2]
[338531083,1726721449424,-407.14044574,0.00013328,2]
[338531084,1726721449434,-236.45909106,0.00013347,2]
[338531085,1726721449443,-200.0,0.00013393,2]
[338531086,1726721449452,-200.0,0.00013393,2]
[338531087,1726721449467,-200.0,0.00013394,2]
[338531088,1726721449476,-200.0,0.00013394,2]
[338531089,1726721449485,-9570.77,0.00013446,2]
[338531090,1726721449495,-7508.21,0.00013446,2]
[338531091,1726721449505,-1753.74,0.00013446,2]
[338531092,1726721449514,-5398.62,0.00013446,2]
[338531093,1726721449523,-3072.27,0.00013446,2]
[338531094,1726721449532,-500.0,0.00013446,2]
[338531095,1726721449542,-7199.78,0.00013446,2]
[338531096,1726721449551,-1066.3,0.00013446,2]
[338531097,1726721449560,-4515.3,0.00013446,2]
[338531098,1726721449570,-5983.57,0.00013446,2]
[338531099,1726721449579,-16126.74,0.00013446,2]
[338531100,1726721449588,-1532.1,0.00013446,2]
[338531101,1726721449598,-500.0,0.00013446,2]
[338531102,1726721449607,-1307.0,0.00013446,2]
[338531103,1726721449616,-4721.83,0.00013446,2]
[338531104,1726721449626,-500.0,0.00013446,2]
[338531105,1726721449635,-1100.01,0.00013446,2]
[338531106,1726721449645,-1156.05,0.00013446,2]
[338531107,1726721449654,-3682.71,0.00013446,2]
[338531108,1726721449664,-1544.08,0.00013446,2]
[338531109,1726721449673,-2120.78,0.00013446,2]
[338531110,1726721449682,-500.0,0.00013446,2]
[338531111,1726721449692,-920.53,0.00013446,2]
[338531112,1726721449701,-1663.81,0.00013446,2]
[338531113,1726721449711,-1016.51,0.00013446,2]
[338531114,1726721449721,-2108.0,0.00013446,2]
[338531115,1726721449731,-1253.48,0.00013446,2]
[338531116,1726721449741,-674.33,0.00013446,2]
[338531117,1726721449751,-803.69,0.00013447,2]
[338531118,1726721449760,-557.3,0.00013447,2]
[338531119,1726721449770,-1045.08,0.00013447,2]
[338531120,1726721449779,-638.43,0.00013447,2]
[338531121,1726721449788,-656.17,0.00013447,2]
[338531122,1726721449798,-485.77,0.00013447,2]
[338531123,1726721449807,-2128.72,0.00013447,2]
[338531124,1726721449816,-500.0,0.00013447,2]
[338531125,1726721449826,-636.27,0.00013447,2]
[338531126,1726721449835,-1527.71,0.00013447,2]
[338531127,1726721449848,-546.15,0.00013447,2]
[338531128,1726721449858,-500.0,0.00013447,2]
[338531129,1726721449867,-500.0,0.00013447,2]
[338531130,1726721449877,-500.0,0.00013447,2]
[338531131,1726721449886,-2334.98,0.00013447,2]
[338531132,1726721449896,-1812.12,0.00013447,2]
[338531133,1726721449906,-2137.06,0.00013447,2]
[338531134,1726721449915,-529.5,0.00013447,2]
[338531135,1726721449926,-829.56,0.00013447,2]
[338531136,1726721449935,-1002.34,0.00013447,2]
[338531137,1726721449945,-458.60115325,0.00013447,2]
[338531138,1726721449954,-647.32,0.00013447,2]
[338531139,1726721449965,-1107.68,0.00013447,2]
[338531140,1726721449974,-500.0,0.00013447,2]
[338531141,1726721449984,-1200.49,0.00013447,2]
[338531142,1726721449993,-938.95,0.00013447,2]
[338531143,1726721450002,-500.0,0.00013447,2]
[338531144,1726721450012,-570.06,0.00013447,2]
[338531145,1726721450022,-427.24635164,0.00013447,2]
[338531146,1726721450032,-2438.23,0.00013447,2]
[338531147,1726721450041,-1723.42,0.00013447,2]
[338531148,1726721450051,-1549.04,0.00013447,2]
[338531149,1726721450060,-965.9,0.00013447,2]
[338531150,1726721450069,-689.45,0.00013447,2]
[338531151,1726721450079,-1555.36,0.00013447,2]
[338531152,1726721450088,-500.0,0.00013447,2]
[338531153,1726721450098,-833.73,0.00013447,2]
[338531154,1726721450108,-500.0,0.00013447,2]
[338531155,1726721450117,-1285.11,0.00013447,2]
[338531156,1726721450127,-500.0,0.00013447,2]
[338531157,1726721450137,-500.0,0.00013447,2]
[338531158,1726721450147,-3075.0,0.00013447,2]
[338531159,1726721450157,-25658.01,0.00013447,2]
[338531160,1726721450166,-513.63,0.00013447,2]
[338531161,1726721450175,-677.8,0.00013447,2]
[338531162,1726721450185,-500.0,0.00013447,2]
[338531163,1726721450195,-500.0,0.00013447,2]
[338531164,1726721450204,-631.78,0.00013447,2]
[338531165,1726721450216,-500.0,0.00013447,2]
[338531166,1726721450225,-55626.13,0.00013447,2]
[338531167,1726721450236,-809.94,0.00013447,2]
[338531168,1726721450246,-559.03,0.00013447,2]
[338531169,1726721450256,-1891.11,0.00013447,2]
[338531170,1726721450266,-589.63,0.00013447,2]
[338531171,1726721450277,-519.42,0.00013447,2]
[338531172,1726721450286,-500.0,0.00013447,2]
[338531173,1726721450296,-967.44,0.00013447,2]
[338531174,1726721450306,-571.18,0.00013447,2]